Workbook

Sheet №3
I2: Приложение №3
B3: к решению Совета депутатов Борковского сельского поселения | D3: к Решению Совета депутатов Борковского сельского поселения
B4: депутатов Борковского сельского поселения от ___12.2015 №__ | C4: "Об утверждении годового отчета за 2016 год Борковского сельского
B5: "О бюджете Борковского сельского поселения на 2016 год"
D6: поселения" от 2017 №
A10: Распределение бюджетных ассигнований из бюджета сельского поселения
A11: за 2016 год и по разделам, подразделам, целевым статьям и видам расходов
A12: функциональной классификации расходов бюджетов Российской Федерации
A14: Наименование | C14: Рз | D14: ПР | E14: ЦСР | F14: ВР | G14: Сумма | J14: 2009 год | K14: 2010 год
G15: план | H15: факт | I15: % исполнения
A16: Администрация Борковского сельского поселения
A17: Общегосударственные вопросы | C17: 01 | G17: =G20+G32+G74+G83+G87 -> 4432.9 | H17: =H20+H32+H74+H83+H87 -> 4425.7 | I17: 100.16 | J17: =J20+#REF!+#REF!+J32+#REF!++#REF!+#REF!+#REF!+#REF! ->  | K17: =K20+#REF!+#REF!+K32+#REF!++#REF!+#REF!+#REF!+#REF! -> 
A18: Функционирование высшего должностного лица
A19: субъекта Российской Федерации и
A20: муниципального образования | C20: =C$17 -> 01 | D20: 02 | G20: =G21 -> 670.1 | H20: =H21 -> 670.1 | I20: =G20/H20*100 -> 100 | J20: =#REF! ->  | K20: =#REF! -> 
A21: Глава муниципального образования | C21: =C$17 -> 01 | D21: =D$20 -> 02 | E21: 20 1 00 00000 | G21: =G23 -> 670.1 | H21: =H23 -> 670.1 | I21: 100 | J21: =#REF! ->  | K21: =#REF! -> 
A22: Расходы на обеспечение функций органов
A23: местного самоуправления | C23: 01 | D23: 02 | E23: 20 1 00 01000 | G23: =G24+G28+G27 -> 670.1 | H23: =H24+H28+H27 -> 670.1 | I23: 100
A24: Фонд оплаты труда государственных (муниципальных) органов | C24: =C$17 -> 01 | D24: =D$20 -> 02 | E24: 20 1 00 01000 | F24: 121 | G24: 467 | H24: 467 | I24: 100
A25: Взносы по обязательном у социальному страхованию на выплаты
A26: денежного содержания и иные выплаты работникам
A27: государственных (муниципальных) органов | C27: 01 | D27: 02 | E27: 20 1 00 01000 | F27: 129 | G27: 163 | H27: 163 | I27: 100
A28: Иные выплаты персоналу, за исключением фонда оплаты труда | C28: =C$17 -> 01 | D28: =D$20 -> 02 | E28: 20 1 00 01000 | F28: 122 | G28: 40.1 | H28: 40.1 | I28: 100
A29: Функционирование Правительства Российской
A30: Федерации, высших исполнительных органов
A31: государственной власти субъектов Российской
A32: Федерации, местных администраций | C32: =C$17 -> 01 | D32: 04 | G32: =G34+G59+G69 -> 3540.8 | H32: =H34+H59+H69 -> 3534.6 | I32: 100.17 | J32: =J34 ->  | K32: =K34 -> 
A33: Расходы на содержаниеаппарата органов местного
A34: самоуправления | C34: =C$17 -> 01 | D34: =D32 -> 04 | E34: 20 2 00 00000 | G34: =G35+G38+G39+G41+G42+G50+G51+G52+G53 -> 3384 | H34: 3377.8 | I34: 100.18 | J34: =#REF!+#REF! ->  | K34: =#REF!+#REF! -> 
A35: Фонд оплаты труда государственных (муниципальных) органов | C35: 01 | D35: 04 | E35: 20 2 00 01000 | F35: 121 | G35: 1707.8 | H35: 1707.8 | I35: 100
A36: Взносы по обязательном у социальному страхованию на выплаты
A37: денежного содержания и иные выплаты работникам
A38: государственных (муниципальных) органов | C38: 01 | D38: 04 | E38: 20 2 00 01000 | F38: 129 | G38: 520.8 | H38: 520.8 | I38: 100
A39: Иные выплаты персоналу, за исключением фонда оплаты труда | C39: 01 | D39: 04 | E39: 20 2 00 01000 | F39: 122 | G39: 81.6 | H39: 81.6 | I39: 100
A40: Закупка товаров, работ, услуг в области информационных техно
A41: логий | C41: 01 | D41: 04 | E41: 20 2 00 01000 | F41: 242 | G41: 298.1 | H41: 298.1 | I41: 100
A42: Прочая закупка товаров,работ и услуг для муниципальных нужд | C42: 01 | D42: =D32 -> 04 | E42: 20 2 00 01000 | F42: 244 | G42: 706.3 | H42: 700.1 | I42: 100.89
A43: Областной резервный фонд на ликвидацию угрозы и
A44: последствий чрезвычайных ситуаций | C44: =C$17 -> 01 | D44: =#REF! ->  | E44: =#REF! ->  | G44: =G45 -> 0 | J44: =J45 -> 0 | K44: =K45 -> 0
A45: Прочие расходы | C45: =C$17 -> 01 | D45: =#REF! ->  | E45: =#REF! ->  | F45: 013 | G45: =3317-3317 -> 0 | J45: =3543-3543 -> 0 | K45: =3773-3773 -> 0
A46: Исполнение судебных актов РФ и мировых соглашений по
A47: возмещению вреда, причиненного в результате незаконных
A48: действий (бездействия) органов государственной власти либо
A49: должностных лиц этих органов, а также в результате деятельности
A50: казенных учреждений | C50: =C$17 -> 01 | D50: =D34 -> 04 | E50: 20 2 00 01000 | F50: 831 | G50: 4 | H50: 4 | I50: 100
A51: Уплата налога на имущество организаций | C51: =C$17 -> 01 | D51: 04 | E51: 20 2 00 01000 | F51: 851 | G51: 2 | H51: 2 | I51: 100
A52: Уплата прочих налогов, сборов и иных обязательных платежей | C52: 01 | D52: 04 | E52: 20 2 00 01000 | F52: 852 | G52: 3.3 | H52: 3.3 | I52: 100
A53: Уплата иных платежей | C53: 01 | D53: 04 | E53: 20 2 00 01000 | F53: 853 | G53: 60.1 | H53: 60.1 | I53: 100
A54: Субвенция на возмещению затрат по содержанию штатных
A55: единиц, осуществляющих переданные отдельные государ
A56: ственные полномочия области по организации деятельно
A57: сти по сбору ( в том числе раздельному сбору) и транспорти
A58: рованию твердых коммунальных отходов городских и сель
A59: ских поселений | C59: 01 | D59: 04 | E59: 20 2 00 70280 | G59: =+G60+G63+G65 -> 151.7 | H59: =+H60+H63+H65 -> 151.7 | I59: 100
A60: Фонд оплаты труда государственных (муниципальных) органов | C60: 01 | D60: 04 | E60: 20 2 00 70280 | F60: 121 | G60: 111.6 | H60: 111.6 | I60: 100
A61: Взносы по обязательном у социальному страхованию на выплаты
A62: денежного содержания и иные выплаты работникам
A63: государственных (муниципальных) органов | C63: 01 | D63: 04 | E63: 20 2 00 70280 | F63: 129 | G63: 32.6 | H63: 32.6 | I63: 100
A64: Прочая закупка товаров,работ и услуг для муниципальных нужд
C65: 01 | D65: 04 | E65: 20 2 00 70280 | F65: 244 | G65: 7.5 | H65: 7.5 | I65: 100
A66: Иные межбюджетные трансферты городским и сельским
A67: поселениям области на частичную компенсацию дополни
A68: тельных расходов на повышение оплаты труда работников
A69: бюджетной сферы | C69: 01 | D69: 04 | E69: 20 2 00 71420 | G69: 5.1 | H69: 5.1 | I69: 100
A70: Фонд оплаты труда государственных (муниципальных) органов | C70: 01 | D70: 04 | E70: 20 2 00 71420 | F70: 121 | G70: 3.9 | H70: 3.9 | I70: 100
A71: Взносы по обязательном у социальному страхованию на выплаты
A72: денежного содержания и иные выплаты работникам
A73: государственных (муниципальных) органов | C73: 01 | D73: 04 | E73: 20 2 00 71420 | F73: 129 | G73: 1.2 | H73: 1.2 | I73: 100
A74: Обеспечение деятельности финансовых, налоговых | C74: 01 | D74: 06 | G74: =G81 -> 217 | H74: 217,0 | I74: 100
A75: и таможенных органов и органов финансового (финансово-
A76: бюджетного) надзора
A77: Иные межбюджетные трансферты из бюджетов поселений
A78: бюджету муниципального района на возмещение затрат по
A79: содержанию штатных единиц, осуществляющих переданные
A80: полномочия поселения по внешнему муниципальному
A81: финансовому контролю | C81: 01 | D81: 06 | E81: 20 4 00 93020 | G81: =+G82 -> 217 | H81: 217,0 | I81: 100
A82: Иные межбюджетные трансферты | C82: 01 | D82: 06 | E82: 20 4 00 93020 | F82: 540 | G82: 217 | H82: 217,0 | I82: =G82/H82*100 -> 100
A83: Резервные фонды | C83: 01 | D83: 11 | G83: =G85 -> 1 | H83: 0,00
A84: Прочие непрограммные расходы | C84: 01 | D84: 11 | E84: 20 5 00 00000 | G84: 1 | H84: 0,00
A85: Резервные фонды местных администраций | C85: 01 | D85: 11 | E85: 20 5 00 25030 | G85: =G86 -> 1 | H85: 0,00
A86: Резервные средства | C86: 01 | D86: 11 | E86: 20 5 00 25030 | F86: 870 | G86: 1 | H86: 0,00
A87: Другие общегосударственные вопросы | C87: 01 | D87: 13 | G87: 4 | H87: 4 | I87: 100
A88: Прочие непрограммные расходы | C88: 01 | D88: 13 | E88: 20 5 00 00000 | G88: 4 | H88: 4 | I88: 100
A89: Содержание и обслуживание казны муниципального
A90: образования | C90: 01 | D90: 13 | E90: 20 5 00 25150 | G90: 4 | H90: 4 | I90: 100
A91: Прочая закупка товаров,работ и услуг для муниципальных
A92: нужд | C92: 01 | D92: 13 | E92: 20 5 00 25150 | F92: 244 | G92: 4 | H92: 4 | I92: 100
A93: Национальная оборона | C93: 02 | G93: =G94 -> 178 | H93: =H94 -> 178 | I93: 100
A94: Мобилизационная и вневойсковая подготовка | C94: 02 | D94: 03 | G94: =+G97 -> 178 | H94: =+H97 -> 178 | I94: 100
A95: Прочие непрограммные расходы | C95: 02 | D95: 03 | E95: 20 5 00 00000 | G95: 178 | H95: 178 | I95: 100
A96: Осуществление первичного воинского учета на
A97: территории, где отсутствуют воинские комиссариаты | C97: 02 | D97: 03 | E97: 20 5 00 51180 | G97: =G98+G103+G101 -> 178 | H97: =H98+H103+H101 -> 178 | I97: 100
A98: Фонд оплаты труда государственных (муниципальных) органов | C98: 02 | D98: 03 | E98: 20 5 00 51180 | F98: 121 | G98: 129.7 | H98: 129.7 | I98: 100
A99: Взносы по обязательном у социальному страхованию на выплаты
A100: денежного содержания и иные выплаты работникам
A101: государственных (муниципальных) органов | C101: 02 | D101: 03 | E101: 20 5 00 51180 | F101: 129 | G101: 39.2 | H101: 39.2 | I101: 100
A102: Прочая закупка товаров,работ и услуг для муниципальных
A103: нужд | C103: 02 | D103: 03 | E103: 20 5 00 51180 | F103: 244 | G103: 9.1 | H103: 9.1 | I103: 100
A104: Национальная безопасность и правоохранительная
A105: деятельность | C105: 03 | G105: =G106+G114 -> 144 | H105: =H106+H114 -> 144 | I105: 100 | J105: =#REF!+#REF!+J114+#REF! ->  | K105: =#REF!+#REF!+K114+#REF! -> 
A106: Защита населения и территории от чрезвычайных | C106: 03 | D106: 09 | G106: =G109 -> 28.5 | H106: =H109 -> 28.5 | I106: 100
A107: ситуаций природного и техногенного характера,
A108: гражданская оборона
A109: Прочие непрограммные расходы | C109: 03 | D109: 09 | E109: 20 5 00 00000 | G109: 28.5 | H109: 28.5 | I109: 100
A110: Расходы на выполнение работ по разработке расчета разме
A111: ра вреда для физических и юридических лиц | C111: 03 | D111: 09 | E111: 20 5 00 14020 | G111: 28.5 | H111: 28.5 | I111: 100
A112: Прочая закупка товаров,работ и услуг для муниципальных
A113: нужд | C113: 03 | D113: 09 | E113: 20 5 00 14020 | F113: 244 | G113: 28.5 | H113: 28.5 | I113: 100
A114: Обеспечение пожарной безопасности | C114: =C$105 -> 03 | D114: 10 | G114: =+G118 -> 115.5 | H114: =+H118 -> 115.5 | I114: 100 | J114: =#REF!+#REF!+#REF! ->  | K114: =#REF!+#REF!+#REF! -> 
A115: Муниципальная программа "Устойчивое развитие
A116: программы территории Борковского сельского | J116: =J120 -> 238496 | K116: =K120 -> 254189
A117: поселения на 2014-2016гг." | C117: 03 | D117: 10 | E117: 01 0 00 00000 | G117: 115.5 | H117: 115.5 | I117: 100
A118: Мероприятия в области противопожарной безопасности | C118: =C$105 -> 03 | D118: =D114 -> 10 | E118: 01 0 00 25110 | G118: =G120 -> 115.5 | H118: =H120 -> 115.5 | I118: 100
A119: Прочая закупка товаров,работ и услуг для
A120: муниципальных нужд | C120: =C$105 -> 03 | D120: =D114 -> 10 | E120: 01 0 00 25110 | F120: 244 | G120: 115.5 | H120: 115.5 | I120: 100 | J120: =24567+213947-18 -> 238496 | K120: =27116+227094-21 -> 254189
A121: Субсидирование процентных ставок по
A122: привлеченным кредитам в российских кредитных
A123: организациях на развитие животноводства | C123: =#REF! ->  | D123: =#REF! ->  | E123: =#REF! ->  | F123: 356
A124: Субсидирование процентных ставок по
A125: привлеченным кредитам в российских кредитных
A126: организациях на развитие малых форм
A127: хозяйствования в агропромышленном комплексе | C127: =#REF! ->  | D127: =#REF! ->  | E127: =#REF! ->  | F127: 357
A128: Субсидирование части затрат на приобретение
A129: дизельного топлива, использованного на
A130: проведение сезонных сельскохозяйственных работ | C130: =#REF! ->  | D130: =#REF! ->  | E130: =#REF! ->  | F130: 355
A131: Субсидирование процентных ставок по кредитам,
A132: полученным в российских кредитных организациях
A133: на развитие животноводства и промышленного
A134: рыбоводства | C134: =#REF! ->  | D134: =#REF! ->  | E134: =#REF! ->  | F134: 356
A135: Субсидирование процентных ставок по кредитам,
A136: полученным в российских кредитных организациях,
A137: и займам, полученным в сельскохозяйственных
A138: кредитных потребительских кооперативах,
A139: на развитие малых форм хозяйствования в
A140: агропромышленном комплексе | C140: =#REF! ->  | D140: =#REF! ->  | E140: =#REF! ->  | F140: 357
A141: Субсидии на поддержку племенного
A142: животноводства | C142: =#REF! ->  | D142: =#REF! ->  | E142: =#REF! ->  | F142: 627
A143: Возмещение части затрат на уплату процентов
A144: по кредитам, полученным на срок до пяти лет
A145: в российских кредитных организациях
A146: на приобретение племенного скота, племенного | I146: =G146/H146*100 -> 
A147: материала рыб, техники и оборудования
A148: для животноводческих комплексов и организаций,
A149: осуществляющих промышленное рыбоводство | C149: =#REF! ->  | D149: =#REF! ->  | E149: =#REF! ->  | F149: 628
A150: Национальная экономика | C150: 04 | G150: =+G152 -> 1931.7 | H150: =+H152 -> 1931.7 | I150: 100
A152: Дорожное хозяйство(дорожные фонды) | C152: 04 | D152: 09 | G152: =+G155 -> 1931.7 | H152: =+H155 -> 1931.7 | I152: 100
A153: Муниципальная программа "Устойчивое развитие
A154: программы территории Борковского сельского
A155: поселения на 2014-2016гг." | C155: 04 | D155: 09 | E155: 01 0 00 00000 | G155: =+G157+G161+G165 -> 1931.7 | H155: =+H157+H161+H165 -> 1931.7 | I155: 100
A156: Капитальный ремонт и ремонт автомобильных дорог общего пользования
A157: пользования местного значения в границах населенных пунктов | C157: 04 | D157: 09 | E157: 01 0 00 S5170 | G157: =G159 -> 658.6 | H157: =H159 -> 658.6 | I157: 100
A158: Прочая закупка товаров,работ и услуг для
A159: муниципальных нужд | C159: 04 | D159: 09 | E159: 01 0 00 S5170 | F159: 244 | G159: 658.6 | H159: 658.6 | I159: 100
A160: Содержание автомобильных дорог общего пользования местного значения населеных пунктов
A161: значения в границах населенных пунктов | C161: 04 | D161: 09 | E161: 01 0 00 25160 | G161: =+G163 -> 150.1 | H161: =+H163 -> 150.1 | I161: 100
A162: Прочая закупка товаров,работ и услуг для
A163: муниципальных нужд | C163: 04 | D163: 09 | E163: 01 0 00 25160 | F163: 244 | G163: 150.1 | H163: 150.1 | I163: 100
A164: Осуществление дорожной деятельности в отношении
A165: автомобильных дорог общего пользования местного значения | C165: 04 | D165: 09 | E165: 01 0 01 71520 | G165: =G167 -> 1123 | H165: =H167 -> 1123 | I165: 100
A166: Прочая закупка товаров,работ и услуг для
A167: муниципальных нужд | C167: 04 | D167: 09 | E167: 01 0 01 71520 | F167: 244 | G167: 1123 | H167: 1123 | I167: 100
A168: Жилищно-коммунальное хозяйство | C168: 05 | G168: =G169+G177 -> 2656.7 | H168: =H169+H177 -> 2656.7 | I168: 100 | J168: =#REF!+J177+#REF! ->  | K168: =#REF!+K177+#REF! -> 
A169: Коммунальное хозяйство | C169: 05 | D169: 02 | G169: =+G175 -> 337.5 | H169: =+H175 -> 337.5 | I169: 100
A171: Муниципальная программа "Устойчивое развитие
A172: программы территории Борковского сельского
A173: поселения на 2014-2016гг." | C173: 05 | D173: 02 | E173: 01 0 00 00000 | G173: =G175 -> 337.5 | H173: =H175 -> 337.5 | I173: 100
A174: Компенсация выпадающих доходов организациям,
A175: предоставляющим населению услуги общественных бань | C175: 05 | D175: 02 | E175: 01 0 00 62200 | G175: =G176 -> 337.5 | H175: =H176 -> 337.5 | I175: 100
A176: Субсидии юридическим лицам | C176: 05 | D176: 02 | E176: 01 0 00 62200 | F176: 810 | G176: 337.5 | H176: 337.5 | I176: 100
A177: Благоустройство | C177: =C$168 -> 05 | D177: 03 | G177: =+G182+G185+G188+G192 -> 2319.2 | H177: =+H182+H185+H188+H192 -> 2319.2 | I177: 100 | J177: =#REF!+#REF!+#REF!+#REF!+J181 ->  | K177: =#REF!+#REF!+#REF!+#REF!+K181 -> 
A178: Муниципальная программа "Устойчивое развитие
A179: программы территории Борковского сельского
A180: поселения на 2014-2016гг." | C180: 05 | D180: 03 | E180: 01 0 00 00000 | G180: 2266.4 | H180: 2266.4 | I180: 100
A181: Организация уличного освещения с использованием | J181: =#REF! ->  | K181: =#REF! -> 
A182: новых технологий | C182: =C$168 -> 05 | D182: =D177 -> 03 | E182: 01 0 00 25190 | G182: =G184 -> 2087 | H182: =H184 -> 2087 | I182: 100
A183: Прочая закупка товаров,работ и услуг для муниципальных
A184: нужд | C184: =C$168 -> 05 | D184: =D182 -> 03 | E184: 01 0 00 25190 | F184: 244 | G184: 2087 | H184: 2087 | I184: 100
A185: Озеленение территории поселения | C185: 05 | D185: 03 | E185: 01 0 00 25210 | G185: =G187 -> 0 | H185: =H187 -> 0
A186: Прочая закупка товаров,работ и услуг для муниципальных
A187: нужд | C187: 05 | D187: 03 | E187: 01 0 00 25210 | F187: 244 | G187: 0 | H187: 0
A188: Организация ритуальных услуг и содержание мест захоронения | C188: 05 | D188: 03 | E188: 01 0 00 25220 | G188: =G190 -> 148.4 | H188: =H190 -> 148.4 | I188: 100
A189: Прочая закупка товаров,работ и услуг для муниципальных
A190: муниципальных нужд | C190: 05 | D190: 03 | E190: 01 0 00 25220 | F190: 244 | G190: 148.4 | H190: 148.4 | I190: 100
A191: Прочие мероприятия по благоустройству
A192: городских округов и поселений | C192: 05 | D192: 03 | E192: 01 0 00 25230 | G192: =G193 -> 83.8 | H192: =H193 -> 83.8 | I192: 100
A193: Прочая закупка товаров, работ и услуг для муниципальных нужд | C193: 05 | D193: 03 | E193: 01 0 00 25230 | F193: 244 | G193: 83.8 | H193: 83.8 | I193: 100
A194: Образование | C194: 07 | G194: =G195+G199 -> 17.2 | H194: =H195+H199 -> 17.2 | I194: 100 | J194: =#REF!+#REF!+#REF!+#REF!+#REF!+J195 ->  | K194: =#REF!+#REF!+#REF!+#REF!+#REF!+K195 -> 
A195: Молодежная политика и оздоровление детей | C195: =C$194 -> 07 | D195: 07 | G195: =G196 -> 4 | H195: =H196 -> 4 | I195: 100 | J195: =#REF!+#REF!+#REF! ->  | K195: =#REF!+#REF!+#REF! -> 
A196: Прочие непрограммные расходы | C196: 07 | D196: 07 | E196: 20 5 00 00000 | G196: 4 | H196: 4 | I196: 100
A197: Реализация мероприятий для детей и молодежи | C197: =C$194 -> 07 | D197: =D$195 -> 07 | E197: 20 5 00 25090 | G197: =G198 -> 4 | H197: =H198 -> 4 | I197: 100 | J197: =#REF!+J198 ->  | K197: =#REF!+K198 -> 
A198: Прочая закупка товаров,работ и услуг для муниципальных нужд | C198: =C$194 -> 07 | D198: =D$195 -> 07 | E198: 20 5 00 25090 | F198: 244 | G198: 4 | H198: 4 | I198: 100
A199: Другие вопросы в области образования | C199: 07 | D199: 09 | G199: =G204+G210 -> 13.2 | H199: =H204+H210 -> 13.2 | I199: 100
A200: Прочие непрограммные расходы | C200: 07 | D200: 09 | E200: 20 5 00 00000
A201: Мероприятия на организацию профессионального образования
A202: и дополнительного профессионального образования выборных
A203: должностных лиц, муниципальных служащих и служащих
A204: городских и сельских поселений | C204: 07 | D204: 09 | E204: 20 5 00 S5370 | G204: =G205 -> 3.8 | H204: =H205 -> 3.8 | I204: 100
A205: Прочая закупка товаров,работ и услуг для муниципальных нужд | C205: 07 | D205: 09 | E205: 20 5 00 S5370 | F205: 244 | G205: 3.8 | H205: 3.8 | I205: 100
A206: Субсидии бюджетам муниципальных районов и городского
A207: округа на организацию профессионального образования
... 39 more rows

Sheet Лист1
